bitfinex/quotes_SOLUSD_20241126
["timestamp","ask_amount","ask_price","bid_price","bid_amount"]
[1732640876554,21.58261394,230.8,230.74,4.3336]
[1732640877286,21.58261394,230.79,230.74,4.3336]
[1732640877463,21.58261394,230.79,230.73,4.334]
[1732640877666,21.58261394,230.8,230.73,4.334]
[1732640878376,21.58261394,230.79,230.73,4.334]
[1732640878560,21.58261394,230.8,230.73,4.334]
[1732640878761,21.58261394,230.78,230.73,4.334]
[1732640878961,21.58261394,230.79,230.73,4.334]
[1732640879174,21.58261394,230.8,230.73,25.91661394]
[1732640880464,7.58859109,230.84,230.73,25.91661394]
[1732640880465,21.58261394,230.82,230.75,21.58261394]
[1732640880979,7.58859109,230.84,230.79,21.58261394]
[1732640881483,7.58859109,230.84,230.78,21.58261394]
[1732640881676,7.58859109,230.84,230.78,25.91551394]
[1732640882192,21.58261394,230.81,230.74,49.69319794]
[1732640882890,21.58261394,230.82,230.75,21.58261394]
[1732640883061,5.15827478,230.81,230.75,25.91611394]
[1732640883479,21.58261394,230.8,230.75,4.3335]
[1732640883781,21.64241066,230.79,230.73,28.110884]
[1732640883967,21.64241066,230.76,230.71,4.3344]
[1732640884289,21.64241066,230.73,230.68,4.335]
[1732640884533,21.64241066,230.72,230.68,4.335]
[1732640884664,21.64241066,230.72,230.66,0.5232148]
[1732640884990,21.64241066,230.74,230.66,26.50092546]
[1732640885178,5.16708156,230.73,230.68,4.335]
[1732640885359,5.16644502,230.74,230.68,4.335]
[1732640885558,5.16644502,230.74,230.68,25.97741066]
[1732640885865,21.64241066,230.76,230.69,21.64241066]
[1732640886065,3.22914136,230.73,230.69,21.64241066]
[1732640886271,3.22914136,230.72,230.69,21.64241066]
[1732640886466,3.22914136,230.71,230.69,21.64241066]
[1732640886668,3.23153051,230.73,230.69,23.776884]
[1732640886865,3.23148416,230.72,230.71,45.41929466]
[1732640887065,3.23148416,230.72,230.69,21.64241066]
[1732640887265,3.23148416,230.71,230.7,28.111484]
[1732640887983,3.23148416,230.71,230.66,0.5232148]
[1732640888286,21.64814375,230.67,230.66,0.5232148]
[1732640888488,24.88128675,230.67,230.66,0.5232148]
[1732640888688,30.05426347,230.67,230.66,0.5232148]
[1732640889196,30.05426347,230.67,230.55,4.3372]
[1732640889483,21.64814375,230.62,230.55,25.98534375]
[1732640889667,3.23318533,230.61,230.56,21.64814375]
[1732640889877,21.64814375,230.61,230.55,4.3372]
[1732640890067,21.64814375,230.62,230.55,4.3372]
[1732640890395,21.64814375,230.58,230.51,4.3381]
[1732640890687,15.173,230.67,230.51,4.3381]
[1732640890688,2.16834764,230.63,230.54,10.0]
[1732640890982,1.05920486,230.64,230.59,0.12549]
[1732640891196,3.22800583,230.69,230.62,0.12549]
[1732640891485,16.0568,230.81,230.58,5.0]
[1732640891486,5.38864222,230.76,230.7,0.12549]
[1732640891664,5.38864222,230.77,230.75,6.5101]
[1732640891876,5.16408401,230.8,230.79,43.776884]
[1732640892064,5.16408401,230.8,230.79,65.42502775]
[1732640892287,7.58859109,230.84,230.78,41.64814375]
[1732640892463,7.58859109,230.84,230.81,21.64814375]
[1732640892881,7.58859109,230.84,230.78,21.64814375]
[1732640893193,7.58859109,230.84,230.77,4.3333]
[1732640893363,7.58859109,230.84,230.78,23.776884]
[1732640893565,7.58859109,230.84,230.77,4.3333]
[1732640893766,7.58859109,230.84,230.78,23.776884]
[1732640894185,7.58859109,230.84,230.81,21.64814375]
[1732640894389,7.58859109,230.84,230.82,45.42502775]
[1732640894573,7.58859109,230.84,230.83,21.64814375]
[1732640895093,27.91764375,230.95,230.83,45.42502775]
[1732640895265,21.64814375,230.98,230.91,21.64814375]
[1732640895472,21.64814375,230.93,230.86,21.64814375]
[1732640895791,4.3294,230.98,230.86,21.64814375]
[1732640896504,21.64814375,230.88,230.81,21.64814375]
[1732640896804,21.64814375,230.88,230.8,21.64814375]
[1732640897102,21.64814375,230.86,230.8,23.776884]
[1732640897301,21.64814375,230.88,230.75,6.5101]
[1732640897502,4.3305,230.92,230.82,21.64814375]
[1732640897503,21.64814375,230.89,230.82,21.64814375]
[1732640897677,21.64814375,230.87,230.79,21.64814375]
[1732640898001,21.64814375,230.84,230.76,21.64814375]
[1732640898299,21.64814375,230.81,230.73,21.64814375]
[1732640898477,21.64814375,230.82,230.74,21.64814375]
[1732640898678,21.64814375,230.81,230.74,21.64814375]
[1732640899103,21.64814375,230.81,230.73,21.64814375]
[1732640899284,4.3327,230.8,230.73,21.64814375]
[1732640899871,21.64814375,230.78,230.71,21.64814375]
[1732640900096,21.64814375,230.75,230.68,21.64814375]
[1732640900288,4.3327,230.8,230.65,21.64814375]
[1732640900289,21.64814375,230.73,230.65,21.64814375]
[1732640900607,15.1645,230.8,230.61,15.1771]
[1732640900898,15.1645,230.8,230.62,0.12549]
[1732640901298,20.0,230.77,230.63,4.3359]
[1732640901473,20.0,230.77,230.6,6.5715]
[1732640901474,20.0,230.77,230.61,4.3362]
[1732640901679,20.0,230.77,230.57,10.8424]
[1732640901680,21.9061,230.76,230.57,10.8424]
[1732640901881,21.9061,230.76,230.54,6.5715]
[1732640901882,21.64814375,230.67,230.6,21.64814375]
[1732640902094,21.64814375,230.66,230.58,21.64814375]
[1732640902297,21.64814375,230.65,230.57,25.98504375]
[1732640902486,21.64814375,230.65,230.58,21.64814375]
[1732640902685,21.64814375,230.65,230.57,25.98504375]
[1732640903400,21.64814375,230.62,230.55,25.98544375]
[1732640903593,21.64814375,230.63,230.55,25.98544375]
[1732640903796,21.64814375,230.64,230.56,21.64814375]
[1732640904103,24.3341,230.73,230.63,21.64814375]
[1732640904290,3.2178105,230.72,230.64,21.64814375]
[1732640904486,4.3338,230.75,230.66,21.64814375]
[1732640904678,7.55193751,230.75,230.66,21.64814375]
[1732640904876,7.55193751,230.75,230.66,23.776884]
[1732640905180,7.55193751,230.75,230.66,28.112084]
[1732640905381,24.86628126,230.75,230.68,45.42502775]
[1732640905581,21.64814375,230.74,230.68,23.776884]
[1732640905781,21.64814375,230.75,230.68,21.64814375]
[1732640906088,4.3336,230.76,230.69,21.64814375]
[1732640906089,21.64814375,230.76,230.69,21.64814375]
[1732640906291,21.64814375,230.75,230.67,21.64814375]
[1732640906496,21.64814375,230.75,230.68,23.776884]
[1732640907211,21.64814375,230.75,230.68,28.111784]
[1732640907384,21.64814375,230.74,230.68,23.776884]
[1732640907576,21.64814375,230.72,230.65,23.776884]
[1732640907780,21.64814375,230.72,230.65,45.42502775]
[1732640908502,4.3335,230.76,230.7,21.64814375]
[1732640908691,21.64814375,230.74,230.67,21.64814375]
[1732640909006,20.0,230.78,230.7,21.64814375]
[1732640909207,23.21683851,230.77,230.7,21.64814375]
[1732640909380,20.0,230.77,230.7,21.64814375]
[1732640909585,3.21702536,230.76,230.69,21.64814375]
[1732640909786,3.21702536,230.76,230.72,21.64814375]
[1732640909997,4.3323,230.82,230.75,21.64814375]
[1732640910207,7.54976389,230.82,230.75,21.64814375]
[1732640910694,7.54976389,230.82,230.76,21.64814375]
[1732640910695,3.21746389,230.82,230.76,21.64814375]
[1732640911006,21.64814375,230.79,230.72,21.64814375]
[1732640911189,21.64814375,230.77,230.7,21.64814375]
[1732640911513,21.64814375,230.78,230.7,21.64814375]
[1732640911800,21.64814375,230.76,230.69,21.64814375]
[1732640912104,4.3324,230.82,230.68,23.776884]
[1732640912105,21.64814375,230.77,230.7,21.64814375]
[1732640912289,21.64814375,230.76,230.69,21.64814375]
[1732640912486,21.64814375,230.75,230.68,21.64814375]
[1732640912687,21.64814375,230.75,230.67,21.64814375]
[1732640913083,21.64814375,230.72,230.65,21.64814375]
[1732640913303,4.3334,230.77,230.67,21.64814375]
[1732640913304,21.64814375,230.74,230.67,21.64814375]
[1732640913610,21.64814375,230.76,230.69,21.64814375]
[1732640913784,21.64814375,230.75,230.67,21.64814375]
[1732640913984,21.64814375,230.75,230.68,21.64814375]
[1732640914526,25.98194375,230.75,230.68,21.64814375]
[1732640914682,25.98194375,230.75,230.67,45.42502775]
[1732640914884,25.98194375,230.75,230.68,21.64814375]
[1732640915196,21.64814375,230.76,230.69,21.64814375]
[1732640915393,21.64814375,230.77,230.69,21.64814375]
[1732640915703,21.64814375,230.78,230.7,45.42502775]
[1732640915906,21.64814375,230.78,230.68,23.776884]
[1732640915907,4.3325,230.82,230.75,21.64814375]
[1732640916112,3.21658248,230.83,230.76,24.027864]
[1732640916410,3.21658248,230.84,230.78,23.776884]
[1732640916604,7.58902008,230.85,230.78,23.776884]
[1732640917003,7.58902008,230.85,230.82,21.62361375]
[1732640917204,7.58902008,230.85,230.83,21.62361375]
[1732640917409,19.7153,230.96,230.84,45.52598775]
[1732640917593,4.3298,230.96,230.9,21.62361375]
[1732640917800,29.17121997,230.96,230.89,21.62361375]
[1732640918001,3.21780622,230.95,230.89,21.62361375]
[1732640918196,21.62361375,230.93,230.86,21.62361375]
[1732640918393,25.95411375,230.93,230.85,45.40049775]
[1732640919512,25.95411375,230.93,230.86,21.62361375]
[1732640920016,21.62361375,230.93,230.86,21.62361375]
[1732640920384,4.3305,230.92,230.86,21.62361375]
[1732640920905,25.95411375,230.92,230.85,23.776884]
[1732640921102,25.95411375,230.92,230.84,21.62361375]
[1732640921303,21.62361375,230.9,230.82,45.40049775]
[1732640921487,25.95638999,230.92,230.85,21.62588999]
[1732640921914,21.62588999,230.91,230.84,21.62588999]
[1732640922089,21.62588999,230.91,230.83,21.62588999]
[1732640922287,4.3308,230.9,230.83,21.62588999]
[1732640922692,4.3308,230.9,230.85,21.62588999]
[1732640923189,4.3306,230.92,230.86,21.62588999]
[1732640923624,4.3306,230.92,230.84,23.776884]
[1732640923625,4.3306,230.92,230.85,21.62588999]
[1732640924114,21.62588999,230.91,230.83,21.62588999]
[1732640924421,21.62588999,230.9,230.82,49.73507399]
[1732640924991,25.95678999,230.9,230.82,45.40277399]
[1732640925191,25.95678999,230.9,230.76,6.12789]
[1732640925192,21.62588999,230.86,230.79,25.95878999]
[1732640925398,5.0,230.96,230.79,25.95878999]
[1732640925399,21.62588999,230.89,230.82,21.62588999]
[1732640925618,21.62588999,230.87,230.8,21.62588999]
[1732640925805,21.62588999,230.88,230.8,21.62588999]
[1732640926009,21.62588999,230.87,230.8,21.62588999]
[1732640926324,21.62588999,230.85,230.79,4.3329]
[1732640926615,21.62588999,230.87,230.8,23.776884]
[1732640927111,21.62588999,230.85,230.8,23.776884]
[1732640927494,21.62588999,230.84,230.76,25.95928999]
[1732640927713,10.8263,230.92,230.76,25.95928999]
[1732640927714,21.62588999,230.83,230.76,4.3334]
[1732640927894,20.0,230.88,230.77,21.62588999]
[1732640928211,21.62588999,230.85,230.77,21.62588999]
[1732640928416,21.62588999,230.85,230.78,4.3331]
[1732640928607,21.62588999,230.83,230.76,21.62588999]
[1732640928918,21.62588999,230.81,230.74,21.62588999]
[1732640929117,21.62588999,230.8,230.73,21.62588999]
[1732640929413,21.62588999,230.78,230.71,21.62588999]
[1732640929616,21.62588999,230.77,230.71,4.3344]
[1732640929821,21.62588999,230.75,230.68,25.96068999]
[1732640929989,21.62588999,230.76,230.68,25.96068999]
[1732640930524,21.62588999,230.75,230.68,25.96068999]
[1732640930692,21.62588999,230.71,230.64,21.62588999]
[1732640930898,4.3335,230.76,230.63,4.3359]
[1732640930899,21.62588999,230.7,230.63,4.3359]
[1732640931105,21.62588999,230.69,230.61,25.96198999]
[1732640931688,21.62588999,230.68,230.61,25.96198999]
[1732640932322,36.79308999,230.76,230.62,21.62588999]
[1732640932323,21.62588999,230.69,230.62,21.62588999]
[1732640932616,25.96068999,230.69,230.62,21.62588999]
[1732640932819,21.62588999,230.69,230.62,25.96188999]
[1732640933420,21.62588999,230.68,230.62,4.336]
[1732640933714,21.62588999,230.67,230.62,23.776884]
[1732640933908,21.62588999,230.65,230.58,21.62588999]
[1732640934309,21.62588999,230.66,230.59,21.62588999]
[1732640934495,21.62588999,230.67,230.6,21.62588999]
[1732640934929,21.62588999,230.62,230.55,25.96308999]
[1732640935090,15.1691,230.73,230.56,21.62588999]
[1732640935091,21.62588999,230.63,230.56,21.62588999]
[1732640935719,21.62588999,230.62,230.55,25.96308999]
[1732640936101,25.96178999,230.64,230.57,21.62588999]
[1732640936300,21.62588999,230.64,230.57,21.62588999]
[1732640937108,21.62588999,230.67,230.6,21.62588999]
[1732640937507,21.62588999,230.66,230.6,23.776884]
[1732640937803,21.62588999,230.67,230.6,21.62588999]
[1732640938923,25.96108999,230.67,230.6,21.62588999]
[1732640939523,21.62588999,230.66,230.6,23.776884]
[1732640939901,21.62588999,230.61,230.54,6.1087]
[1732640940118,21.62588999,230.62,230.55,21.62588999]
[1732640940321,21.62588999,230.64,230.57,21.62588999]
[1732640940521,20.1705,230.71,230.58,21.62588999]
[1732640940522,21.62588999,230.65,230.58,21.62588999]
[1732640941428,21.62588999,230.64,230.58,23.776884]
[1732640941904,21.62588999,230.59,230.5,21.62588999]
[1732640942102,21.62588999,230.59,230.52,21.62588999]
[1732640942321,16.4016,230.65,230.47,6.3926]
[1732640942322,21.62588999,230.58,230.51,21.62588999]
[1732640943108,25.96278999,230.58,230.51,21.62588999]
[1732640943503,21.62588999,230.57,230.5,21.62588999]
[1732640944114,4.3369,230.58,230.52,21.62588999]
[1732640944501,25.96248999,230.6,230.53,21.62588999]
[1732640944716,21.62588999,230.65,230.58,21.62588999]
[1732640944918,4.3353,230.66,230.6,21.62588999]
[1732640945129,4.3349,230.69,230.53,24.027864]
[1732640945306,4.3349,230.69,230.52,36.80888999]
[1732640945307,4.3349,230.69,230.57,24.027864]
[1732640945633,4.334,230.73,230.57,39.279564]
[1732640946134,15.1691,230.73,230.57,39.154074]
[1732640946331,21.62588999,230.67,230.59,21.62588999]
[1732640946515,21.62588999,230.65,230.58,21.62588999]
[1732640946915,21.62588999,230.66,230.59,21.62588999]
[1732640947114,21.62588999,230.65,230.58,21.62588999]
[1732640948133,21.62588999,230.65,230.57,21.62588999]
[1732640948334,21.62588999,230.65,230.52,10.845]
[1732640948335,21.62588999,230.62,230.55,21.62588999]
[1732640948716,21.62588999,230.63,230.55,21.62588999]
[1732640948915,21.62588999,230.64,230.57,21.62588999]
[1732640949315,21.62588999,230.63,230.56,21.62588999]
[1732640950113,21.62588999,230.65,230.57,45.40277399]
[1732640950611,21.62588999,230.68,230.61,21.62588999]
[1732640950829,21.62588999,230.69,230.61,21.62588999]
[1732640951013,21.62588999,230.69,230.62,23.776884]
[1732640951221,21.62588999,230.69,230.62,45.40277399]
[1732640951420,21.62588999,230.69,230.62,23.776884]
[1732640951616,25.96028999,230.71,230.63,21.62588999]
[1732640951818,21.62588999,230.7,230.63,21.62588999]
[1732640952076,4.3344,230.71,230.62,25.96188999]
[1732640952077,21.62588999,230.69,230.62,25.96188999]
[1732640952413,21.62588999,230.67,230.6,21.62588999]
[1732640952614,21.62588999,230.69,230.61,21.62588999]
[1732640952833,21.62588999,230.69,230.62,21.62588999]
[1732640953736,21.62588999,230.68,230.61,21.62588999]
[1732640954145,25.96028999,230.71,230.64,21.62588999]
[1732640954329,4.3343,230.72,230.66,21.62588999]
[1732640954509,4.3343,230.72,230.65,21.62588999]
[1732640956420,21.62588999,230.74,230.66,45.40277399]
[1732640956621,21.62588999,230.74,230.67,21.62588999]
[1732640956821,21.62588999,230.73,230.66,45.40277399]
[1732640957338,21.62588999,230.73,230.66,23.776884]
[1732640957540,21.62588999,230.7,230.64,4.3357]
[1732640957855,21.62588999,230.71,230.64,21.62588999]
[1732640958350,21.62588999,230.65,230.57,21.62588999]
[1732640958522,21.62588999,230.63,230.56,21.62588999]
[1732640958717,21.62588999,230.62,230.54,28.07838999]
[1732640959579,25.96208999,230.62,230.54,28.07838999]
[1732640959727,25.96208999,230.62,230.54,32.41598999]
[1732640960153,25.96208999,230.62,230.55,23.776884]
[1732640960341,21.62588999,230.58,230.5,25.96408999]
[1732640960543,21.62588999,230.6,230.52,21.62588999]
[1732640961137,25.96208999,230.62,230.54,21.62588999]
[1732640961651,25.96208999,230.62,230.54,25.96348999]
[1732640962953,21.62588999,230.58,230.5,25.96418999]
[1732640963122,21.62588999,230.54,230.46,6.4525]
[1732640963317,21.62588999,230.54,230.46,10.7915]
[1732640963745,21.62588999,230.54,230.47,21.62588999]
[1732640964442,21.62588999,230.54,230.48,23.776884]
[1732640964644,21.62588999,230.54,230.47,23.776884]
[1732640965348,21.62588999,230.54,230.47,28.115684]
[1732640966243,4.3374,230.55,230.49,21.62588999]
[1732640969460,21.62588999,230.59,230.51,21.62588999]
[1732640969649,21.62588999,230.58,230.51,21.62588999]
[1732640969856,21.62588999,230.54,230.47,28.115684]
[1732640970527,21.62588999,230.55,230.48,21.62588999]
[1732640970728,21.62588999,230.54,230.47,49.74157399]
[1732640970948,21.62588999,230.55,230.47,49.74157399]
[1732640971139,4.3373,230.56,230.47,28.115684]
[1732640971140,21.62588999,230.54,230.47,28.115684]
[1732640971852,25.96338999,230.55,230.48,21.62588999]
[1732640972070,21.62588999,230.54,230.47,28.115684]
[1732640972354,21.62588999,230.48,230.43,0.5232148]
[1732640972555,21.62588999,230.5,230.43,26.48870479]
[1732640972754,15.1811,230.55,230.43,0.5232148]
[1732640973128,21.62588999,230.49,230.43,0.5232148]
[1732640973332,21.62588999,230.46,230.43,0.5232148]
[1732640973656,21.62588999,230.48,230.43,0.5232148]
[1732640974037,21.62588999,230.51,230.44,25.96538999]
[1732640974248,21.62588999,230.52,230.45,21.62588999]
[1732640974593,21.62588999,230.56,230.48,21.62588999]
[1732640974731,25.96308999,230.56,230.48,21.62588999]
[1732640974928,21.62588999,230.55,230.48,21.62588999]
[1732640975139,21.62588999,230.54,230.47,21.62588999]
[1732640975340,21.62588999,230.55,230.48,21.62588999]
[1732640975729,21.62588999,230.54,230.47,25.96468999]
[1732640976459,21.62588999,230.54,230.47,4.3388]
[1732640976773,21.62588999,230.48,230.43,0.5232148]
[1732640976948,21.62588999,230.46,230.43,0.5232148]
[1732640977330,21.62588999,230.47,230.43,0.5232148]
[1732640977555,25.96488999,230.47,230.43,0.5232148]
[1732640978762,21.62588999,230.5,230.43,0.5232148]
[1732640978969,21.62588999,230.55,230.48,21.62588999]
[1732640979153,21.62588999,230.54,230.46,21.62588999]
[1732640979354,21.62588999,230.53,230.46,21.62588999]
[1732640980553,25.96368999,230.53,230.46,21.62588999]
[1732640980960,25.96368999,230.53,230.44,23.776884]
[1732640981279,21.62588999,230.5,230.43,45.92598879]
[1732640981581,21.62588999,230.51,230.44,21.62588999]
[1732640981752,21.62588999,230.52,230.45,21.62588999]
[1732640981958,21.62588999,230.51,230.44,21.62588999]
[1732640982373,21.62588999,230.47,230.43,0.5232148]
[1732640982556,21.62588999,230.46,230.43,0.5232148]
[1732640982757,21.62588999,230.47,230.43,0.5232148]
[1732640983067,25.96478999,230.48,230.43,0.5232148]
[1732640983261,4.3389,230.48,230.43,0.5232148]
[1732640983576,11.6333,230.59,230.43,0.5232148]
[1732640983577,21.62588999,230.51,230.44,21.62588999]
[1732640983788,25.96388999,230.52,230.45,21.62588999]
[1732640984081,21.62588999,230.51,230.43,26.48870479]
[1732640984261,21.62588999,230.51,230.44,21.62588999]
[1732640984674,25.96418999,230.51,230.44,21.62588999]
[1732640984878,4.3383,230.51,230.44,21.62588999]
[1732640985584,21.62588999,230.53,230.45,21.62588999]
[1732640986161,21.62588999,230.53,230.43,0.5232148]
[1732640986162,21.62588999,230.5,230.43,4.8628148]
[1732640986362,21.62588999,230.5,230.43,22.14910479]
[1732640986776,21.62588999,230.51,230.44,21.62588999]
[1732640987282,21.62588999,230.52,230.44,21.62588999]
[1732640987583,15.181,230.55,230.43,4.8628148]
[1732640987584,21.62588999,230.53,230.45,21.62588999]
[1732640988153,4.338,230.52,230.45,21.62588999]
[1732640988677,25.96388999,230.52,230.44,25.96528999]
[1732640988866,21.62588999,230.55,230.48,21.62588999]
[1732640990083,4.3376,230.54,230.48,21.62588999]
[1732640990854,5.0,230.61,230.45,23.776884]
[1732640990855,21.62588999,230.59,230.52,21.62588999]
[1732640991064,26.77126228,230.58,230.5,21.62588999]
[1732640991275,3.21585768,230.57,230.5,21.62588999]
[1732640991561,24.84174767,230.57,230.5,21.62588999]
[1732640991883,21.62588999,230.57,230.5,21.62588999]
[1732640992675,21.62588999,230.57,230.49,21.62588999]
[1732640993062,4.3372,230.56,230.49,21.62588999]
[1732640993267,25.96308999,230.56,230.48,21.62588999]
[1732640995778,25.96308999,230.56,230.48,25.96448999]
[1732640996499,17.89288467,230.56,230.48,17.89428467]
[1732640997371,17.89288467,230.56,230.48,13.55568467]
[1732640997667,17.89288467,230.56,230.48,17.89438467]
[1732640998370,17.89288467,230.56,230.48,13.55568467]
[1732640999292,3.22285145,230.55,230.48,13.55568467]
[1732640999480,4.3376,230.54,230.48,13.55568467]
[1732640999785,17.89328467,230.54,230.46,13.55568467]
[1732640999967,13.55568467,230.52,230.45,4.3393]
[1732641000167,13.55568467,230.52,230.45,23.776884]
[1732641001391,4.3382,230.51,230.45,23.776884]
[1732641001592,17.89388467,230.51,230.44,4.3394]
[1732641001768,13.55568467,230.48,230.43,0.5232148]
[1732641001969,17.89388467,230.51,230.44,13.55568467]
[1732641002278,3.23312456,230.5,230.45,13.55568467]
[1732641002598,17.89388467,230.51,230.43,18.41849947]
[1732641002977,3.23268333,230.5,230.44,13.55568467]
[1732641003191,3.23268333,230.5,230.43,14.07889947]
[1732641003371,13.55568467,230.52,230.45,13.55568467]
[1732641003692,3.233487,230.51,230.45,13.55568467]
[1732641003895,4.3378,230.54,230.48,13.55568467]
[1732641004099,8.41252833,230.55,230.5,13.55568467]
[1732641004274,3.23558782,230.54,230.51,13.55568467]
[1732641004629,3.23558782,230.55,230.49,13.55568467]
[1732641004790,3.23558782,230.54,230.49,13.55568467]
[1732641005091,8.41252833,230.55,230.49,4.3384]
[1732641005302,3.23558782,230.54,230.5,13.55568467]
[1732641005476,3.23558782,230.54,230.53,13.55568467]
[1732641005680,3.23558782,230.55,230.53,13.55568467]
[1732641005887,8.41252833,230.6,230.54,13.55568467]
[1732641006190,3.23840751,230.59,230.54,13.55568467]
[1732641006493,3.23840751,230.58,230.53,13.55568467]
[1732641006695,12.75635952,230.6,230.53,17.89348467]
[1732641006996,13.55568467,230.57,230.5,23.776884]
[1732641007169,13.55568467,230.57,230.49,13.55568467]
[1732641007170,13.55568467,230.55,230.46,28.81198467]
[1732641007368,13.55568467,230.53,230.46,28.81198467]
[1732641007681,3.23840751,230.52,230.46,28.81198467]
[1732641007868,13.55568467,230.53,230.46,28.81198467]
[1732641008070,3.24276289,230.52,230.46,33.15108467]
[1732641008481,3.24276289,230.52,230.47,37.33256867]
[1732641008683,13.55568467,230.55,230.47,37.33256867]
[1732641008684,3.24276289,230.53,230.51,13.55568467]
[1732641008995,3.24276289,230.54,230.53,23.776884]
[1732641009195,3.24399309,230.57,230.53,23.776884]
[1732641009490,21.13597776,230.61,230.54,13.55568467]
[1732641009668,8.4254451,230.6,230.54,13.55568467]
[1732641009873,17.89198467,230.61,230.54,13.55568467]
[1732641010172,8.43248422,230.6,230.55,13.55568467]
[1732641010387,3.24326316,230.59,230.55,13.55568467]
[1732641010590,7.57976316,230.6,230.54,13.55568467]
[1732641010785,3.24326316,230.59,230.55,37.33256867]
[1732641011304,3.24326316,230.61,230.56,13.55568467]
[1732641011474,3.24326316,230.6,230.58,13.55568467]
[1732641011680,3.24326316,230.62,230.58,13.55568467]
[1732641011875,3.24326316,230.61,230.6,13.55568467]
[1732641012281,3.24326316,230.64,230.6,13.55568467]
[1732641012479,3.24326316,230.63,230.6,13.55568467]
[1732641012790,3.24326316,230.62,230.6,13.55568467]
[1732641012995,3.24039278,230.63,230.6,13.55568467]
[1732641013775,3.24039278,230.64,230.6,13.55568467]
[1732641013977,4.3355,230.65,230.6,13.55568467]
[1732641014214,3.24039278,230.64,230.6,13.55568467]
[1732641014497,16.79607745,230.64,230.58,23.776884]
[1732641014680,3.24039278,230.63,230.56,23.776884]
[1732641015292,3.24039278,230.63,230.57,13.55568467]
[1732641015891,3.24039278,230.63,230.58,13.55568467]
[1732641016090,3.24039278,230.63,230.62,37.33256867]
[1732641016402,4.334,230.74,230.65,23.776884]
[1732641016595,13.55568467,230.73,230.66,13.55568467]
[1732641016795,4.334,230.74,230.67,13.55568467]
[1732641017100,13.55568467,230.73,230.65,23.776884]
[1732641017319,3.23808661,230.73,230.66,13.55568467]
[1732641017622,3.23808661,230.73,230.7,13.55568467]
[1732641017920,3.23808661,230.73,230.71,23.776884]
[1732641018118,3.23808661,230.73,230.68,13.55568467]
[1732641018328,3.23808661,230.73,230.71,23.776884]
[1732641018823,3.23808661,230.77,230.71,23.776884]
[1732641019022,3.23808661,230.77,230.72,13.55568467]
[1732641019318,7.59188319,230.78,230.76,13.55568467]
[1732641019660,7.59188319,230.78,230.75,23.776884]
[1732641019831,7.59188319,230.78,230.68,23.776884]
[1732641019832,13.55568467,230.76,230.68,23.776884]
[1732641020009,13.55568467,230.73,230.68,23.776884]
[1732641020218,13.55568467,230.73,230.66,23.776884]
[1732641020519,13.55568467,230.74,230.67,13.55568467]
[1732641020696,13.55568467,230.74,230.68,23.776884]
[1732641020901,13.55568467,230.73,230.68,23.776884]
[1732641021125,13.55568467,230.72,230.66,23.776884]
[1732641021312,13.55568467,230.73,230.66,23.776884]
[1732641021627,13.55568467,230.76,230.69,13.55568467]
[1732641021803,3.22752357,230.75,230.7,13.55568467]
[1732641022004,3.22752357,230.76,230.71,23.776884]
[1732641022317,3.22752357,230.76,230.71,37.33256867]
[1732641022522,7.56082357,230.77,230.72,23.776884]
[1732641022823,21.11650824,230.77,230.72,23.776884]
[1732641022999,3.22752357,230.76,230.7,23.776884]
[1732641023315,16.78320824,230.76,230.7,23.776884]
[1732641023526,4.3333,230.77,230.72,23.776884]
[1732641023729,7.55689225,230.77,230.72,23.776884]
[1732641024044,7.55689225,230.77,230.7,23.776884]
[1732641024045,13.55568467,230.76,230.7,23.776884]
[1732641024527,13.55568467,230.76,230.69,13.55568467]
[1732641024528,4.3336,230.75,230.69,23.776884]
[1732641024827,17.88928467,230.75,230.68,0.12549]
[1732641025331,4.3336,230.75,230.69,23.776884]
[1732641025629,4.3333,230.77,230.71,13.55568467]
[1732641025825,4.3333,230.77,230.69,37.33256867]
[1732641026021,13.55568467,230.76,230.69,37.33256867]
[1732641026323,17.88948467,230.75,230.69,23.776884]
[1732641027026,4.3338,230.75,230.69,13.55568467]
[1732641027234,17.88908467,230.77,230.7,23.776884]
[1732641029641,17.88908467,230.77,230.68,23.902374]
[1732641029642,13.55568467,230.75,230.68,23.902374]
[1732641029822,13.55568467,230.73,230.65,13.55568467]
[1732641030021,13.55568467,230.68,230.6,17.89198467]
[1732641030322,13.55568467,230.69,230.62,13.55568467]
[1732641030712,13.55568467,230.7,230.62,13.55568467]
[1732641031130,17.89048467,230.7,230.62,17.89178467]
[1732641031315,17.89048467,230.7,230.63,37.33256867]
[1732641032227,13.55568467,230.69,230.63,23.776884]
[1732641032415,17.89048467,230.7,230.63,37.33256867]
[1732641032611,4.3348,230.7,230.65,23.776884]
[1732641032829,4.3348,230.7,230.65,13.55568467]
[1732641033036,4.3348,230.7,230.66,23.776884]
[1732641033538,13.55568467,230.74,230.67,37.33256867]
[1732641033920,13.55568467,230.74,230.67,23.776884]